bitfinex/quotes_BTCUSD_20220111
["timestamp","ask_amount","ask_price","bid_price","bid_amount"]
[1641909888822,0.434906,41776.0,41769.0,0.28642537]
[1641909889270,0.445906,41776.0,41769.0,0.29442537]
[1641909889471,0.386048,41776.0,41769.0,0.29442537]
[1641909889871,0.386048,41776.0,41770.0,0.00067047]
[1641909890475,0.375048,41776.0,41770.0,0.00067047]
[1641909891072,0.375048,41776.0,41771.0,0.00053716]
[1641909891273,0.388048,41776.0,41771.0,0.00053716]
[1641909891472,0.00022479,41775.0,41771.0,0.00053716]
[1641909891674,0.375048,41774.0,41771.0,0.00053716]
[1641909893112,0.389048,41774.0,41771.0,0.00753716]
[1641909893516,0.389048,41774.0,41771.0,0.007]
[1641909893714,0.014,41774.0,41771.0,0.007]
[1641909894318,0.00022479,41775.0,41770.0,0.00053717]
[1641909894712,0.00022479,41775.0,41770.0,0.00056365]
[1641909895113,0.01422479,41775.0,41770.0,0.00856365]
[1641909896315,0.00022418,41774.0,41770.0,0.00856365]
[1641909896561,0.00022418,41774.0,41770.0,0.00056365]
[1641909897161,0.01422418,41774.0,41770.0,0.00856366]
[1641909897560,0.01422418,41774.0,41773.0,0.1998]
[1641909898462,0.00022418,41774.0,41773.0,0.1998]
[1641909898863,0.00022418,41774.0,41771.0,0.00055838]
[1641909899363,0.01722418,41774.0,41773.0,0.005]
[1641909900412,0.01722418,41774.0,41771.0,0.00055838]
[1641909900612,0.00022418,41774.0,41771.0,0.00055838]
[1641909901216,0.01122418,41774.0,41771.0,0.00755838]
[1641909901412,0.011,41774.0,41771.0,0.00755838]
[1641909902012,0.011,41774.0,41771.0,0.007]
[1641909902514,0.47359018,41777.0,41770.0,0.00055944]
[1641909902713,0.80261969,41777.0,41770.0,0.00055944]
[1641909903113,0.059857,41775.0,41770.0,0.00055944]
[1641909903313,0.32970138,41774.0,41770.0,0.00855944]
[1641909903518,0.20975805,41773.0,41770.0,0.00855944]
[1641909903717,0.09426207,41772.0,41770.0,0.00855944]
[1641909903913,0.7756615,41771.0,41770.0,0.00855944]
[1641909904166,1.1507095,41771.0,41770.0,0.00855944]
[1641909904366,1.1507095,41771.0,41770.0,0.008]
[1641909904567,0.8507095,41771.0,41769.0,0.00055946]
[1641909904767,1.03484613,41770.0,41769.0,0.00055946]
[1641909905168,1.03484613,41770.0,41769.0,0.00655946]
[1641909905567,1.08484613,41770.0,41769.0,0.006]
[1641909906167,1.03484613,41770.0,41769.0,0.006]
[1641909906371,0.98484613,41770.0,41769.0,0.006]
[1641909906568,1.04471113,41770.0,41767.0,0.00055929]
[1641909906768,0.059866,41769.0,41767.0,0.00055929]
[1641909907167,0.059866,41769.0,41767.0,0.00955929]
[1641909907368,0.3347977,41768.0,41767.0,0.00955929]
[1641909908014,0.3347977,41768.0,41767.0,0.009]
[1641909908413,0.3347977,41768.0,41766.0,0.00055932]
[1641909909021,0.3847977,41768.0,41766.0,0.00055932]
[1641909909215,0.3937977,41768.0,41766.0,0.015]
[1641909909714,0.059,41768.0,41766.0,0.015]
[1641909910114,0.009,41768.0,41766.0,0.015]
[1641909910515,0.159866,41769.0,41765.0,0.00055938]
[1641909910715,0.109866,41769.0,41765.0,0.00055938]
[1641909911316,0.17873444,41769.0,41765.0,0.01655938]
[1641909911763,0.22873444,41769.0,41765.0,0.01655938]
[1641909911964,0.23594611,41769.0,41765.0,0.01655938]
[1641909912365,0.23594611,41769.0,41765.0,0.00055938]
[1641909912563,0.22694611,41769.0,41765.0,0.00055938]
[1641909912765,0.33058879,41768.0,41765.0,0.00055936]
[1641909912968,0.38058879,41768.0,41765.0,0.00055936]
[1641909913167,0.44046179,41768.0,41765.0,0.01655936]
[1641909913565,0.05,41767.0,41765.0,0.01655936]
[1641909913766,0.059873,41768.0,41765.0,0.01655936]
[1641909913967,0.059873,41768.0,41765.0,0.016]
[1641909914567,0.059873,41768.0,41764.0,0.00055937]
[1641909914766,0.06707767,41769.0,41764.0,0.00055937]
[1641909915166,0.009,41768.0,41764.0,0.01855937]
[1641909915614,0.34241363,41768.0,41764.0,0.01855937]
[1641909916111,0.39241363,41768.0,41764.0,0.01855937]
[1641909916311,0.05987,41767.0,41764.0,0.01855939]
[1641909916510,0.05987,41767.0,41764.0,0.00055939]
[1641909917312,0.06587,41767.0,41764.0,0.04755939]
[1641909917514,0.06587,41767.0,41764.0,0.047]
[1641909918516,0.05987,41767.0,41763.0,0.0005594]
[1641909918815,0.05987,41767.0,41763.0,0.60982908]
[1641909919267,0.05987,41767.0,41763.0,0.66182908]
[1641909919465,0.47682763,41767.0,41763.0,0.66182908]
[1641909919665,0.10182631,41764.0,41763.0,0.66182908]
[1641909919865,0.09305586,41765.0,41763.0,0.66238848]
[1641909920064,0.09305586,41765.0,41763.0,0.66182908]
[1641909920266,0.09305586,41765.0,41763.0,0.0525594]
[1641909920464,0.20293086,41765.0,41763.0,0.0005594]
[1641909920664,0.15293086,41765.0,41763.0,0.0005594]
[1641909921065,0.059875,41765.0,41763.0,0.0005594]
[1641909921267,0.066875,41765.0,41763.0,0.0285594]
[1641909921464,0.15795702,41765.0,41763.0,0.0285594]
[1641909921868,0.38026586,41764.0,41763.0,0.028]
[1641909922265,0.05,41764.0,41763.0,0.028]
[1641909922569,0.28574575,41763.0,41762.0,0.00111884]
[1641909922818,0.28574575,41763.0,41762.0,0.00055942]
[1641909923213,0.29374575,41763.0,41762.0,0.03755942]
[1641909923715,0.29374575,41763.0,41762.0,0.037]
[1641909924520,0.28574575,41763.0,41760.0,0.00055945]
[1641909924718,0.28574575,41763.0,41760.0,0.61038858]
[1641909924920,0.28574575,41763.0,41760.0,0.60982913]
[1641909925218,0.28574575,41763.0,41760.0,0.04355945]
[1641909925418,0.28574575,41763.0,41761.0,0.375048]
[1641909926020,0.28574575,41763.0,41760.0,0.65226968]
[1641909926419,0.28574575,41763.0,41761.0,0.375048]
[1641909926667,0.28574575,41763.0,41760.0,0.60926968]
[1641909927172,0.28574575,41763.0,41760.0,0.65282914]
[1641909927566,0.28574575,41763.0,41760.0,0.04355946]
[1641909927967,0.28574575,41763.0,41760.0,0.65282914]
[1641909928568,0.28574575,41763.0,41760.0,0.60926968]
[1641909928867,0.28574575,41763.0,41761.0,0.60926968]
[1641909929269,0.28674575,41763.0,41761.0,0.60926968]
[1641909929467,0.28674575,41763.0,41760.0,0.65126968]
[1641909929672,0.28674575,41763.0,41760.0,0.65182914]
[1641909930514,0.28574575,41763.0,41760.0,0.60982914]
[1641909930915,0.28574575,41763.0,41760.0,0.60926968]
[1641909931313,0.28674575,41763.0,41760.0,0.65026968]
[1641909932614,0.28574575,41763.0,41760.0,0.60926968]
[1641909933215,0.28674575,41763.0,41760.0,0.65126968]
[1641909934464,0.33574575,41763.0,41760.0,0.60926968]
[1641909934663,0.28574575,41763.0,41760.0,0.60926968]
[1641909935062,0.28574575,41763.0,41759.0,0.6098443]
[1641909935264,0.28674575,41763.0,41760.0,0.417048]
[1641909936563,0.28574575,41763.0,41760.0,0.98431768]
[1641909937165,0.28674575,41763.0,41760.0,1.02631768]
[1641909937368,0.28674575,41763.0,41760.0,0.65126968]
[1641909938411,0.28674575,41763.0,41760.0,0.60926968]
[1641909938611,0.28574575,41763.0,41760.0,0.60926968]
[1641909939211,0.28674575,41763.0,41760.0,0.65226968]
[1641909940015,0.28674575,41763.0,41760.0,0.043]
[1641909940410,0.28674575,41763.0,41760.0,0.65226968]
[1641909940613,0.28574575,41763.0,41760.0,0.60926968]
[1641909941011,0.27218346,41763.0,41760.0,0.60926968]
[1641909941217,0.27218346,41763.0,41756.0,0.08953656]
[1641909941218,0.95,41761.0,41756.0,0.08953656]
[1641909941418,0.00120547,41760.0,41756.0,0.08953656]
[1641909941673,0.10311455,41758.0,41756.0,0.08953656]
[1641909941867,1.722748,41757.0,41756.0,0.08953656]
[1641909942273,0.88185272,41757.0,41756.0,0.08953656]
[1641909943270,1.3,41756.0,41744.0,0.3721901]
[1641909943474,1.3,41756.0,41743.0,1.578]
[1641909943475,0.00124137,41752.0,41743.0,1.578]
[1641909943671,0.059896,41750.0,41743.0,0.9834]
[1641909943874,0.0477,41749.0,41745.0,1.01733855]
[1641909944075,0.42572686,41749.0,41745.0,1.01733855]
[1641909944271,0.30365102,41748.0,41745.0,1.01733855]
[1641909944775,0.30365102,41748.0,41744.0,1.01733855]
[1641909944776,0.00125003,41747.0,41744.0,1.01733855]
[1641909945422,0.00125003,41747.0,41744.0,0.00073274]
[1641909945423,0.00128037,41745.0,41744.0,0.00073274]
[1641909945617,2.19924785,41745.0,41744.0,0.00073274]
[1641909945819,1.24924785,41745.0,41744.0,0.00073274]
[1641909946016,1.29326052,41745.0,41744.0,0.00073274]
[1641909946417,1.29326052,41745.0,41742.0,0.00070276]
[1641909946617,0.059918,41744.0,41742.0,0.00070276]
[1641909946818,2.14447849,41743.0,41742.0,0.00070276]
[1641909947018,2.29447849,41743.0,41742.0,0.00070276]
[1641909947219,2.34209707,41743.0,41742.0,0.00070276]
[1641909947420,4.02953643,41743.0,41742.0,0.00070276]
[1641909947618,4.01325225,41743.0,41740.0,0.00070281]
[1641909947824,0.24454585,41741.0,41740.0,0.00070281]
[1641909948021,1.04289826,41741.0,41740.0,0.00070281]
[1641909948220,1.04416039,41741.0,41740.0,0.00070281]
[1641909948421,0.71855598,41741.0,41740.0,0.00070281]
[1641909948622,1.0556978,41741.0,41740.0,0.00070281]
[1641909948821,1.0556978,41741.0,41738.0,0.00070286]
[1641909949060,0.375048,41740.0,41738.0,0.00070286]
[1641909949261,0.6477,41739.0,41738.0,0.00070286]
[1641909949460,1.34988546,41739.0,41738.0,0.00070286]
[1641909949662,0.74988546,41739.0,41738.0,0.00070286]
[1641909950062,0.74988546,41739.0,41736.0,0.00051924]
[1641909950262,0.375048,41738.0,41736.0,0.00051924]
[1641909950466,0.422748,41738.0,41736.0,0.00051924]
[1641909951061,0.0477,41738.0,41736.0,0.00051924]
[1641909951262,0.0577,41738.0,41735.0,0.00051926]
[1641909952462,0.0577,41738.0,41731.0,0.72986672]
[1641909952463,0.0477,41738.0,41734.0,0.00051928]
[1641909953320,0.0567,41738.0,41734.0,0.00051928]
[1641909953618,0.0567,41738.0,41734.0,0.00051929]
[1641909954020,0.05992,41737.0,41734.0,0.00051929]
[1641909954217,0.11483746,41737.0,41734.0,0.00051929]
[1641909954818,0.05491746,41737.0,41733.0,0.00056522]
[1641909955418,0.30391746,41737.0,41733.0,0.00056522]
[1641909956019,0.30391746,41737.0,41733.0,0.00056523]
[1641909956662,0.29491746,41737.0,41733.0,0.00056523]
[1641909956963,0.05491831,41736.0,41733.0,0.00056523]
[1641909958467,0.05491831,41736.0,41733.0,0.3513861]
[1641909958667,0.05491831,41736.0,41733.0,0.23564665]
[1641909959268,0.05891831,41736.0,41733.0,0.23564665]
[1641909959471,0.01121831,41736.0,41733.0,0.58646019]
[1641909959668,0.01121831,41736.0,41734.0,0.375048]
[1641909959669,0.004,41736.0,41734.0,0.375048]
[1641909959869,0.004,41736.0,41735.0,2.0852574]
[1641909960071,0.3089,41750.0,41735.0,2.0852574]
[1641909960072,0.20004,41751.0,41736.0,1.225048]
[1641909960327,0.20004,41751.0,41742.0,0.059889]
[1641909960518,0.5805004,41753.0,41747.0,0.34132321]
[1641909960718,0.375048,41752.0,41747.0,0.34132321]
[1641909960921,0.27140175,41753.0,41747.0,0.34132321]
[1641909961318,0.009,41752.0,41747.0,0.40132321]
[1641909961519,0.009,41752.0,41748.0,0.434929]
[1641909961722,0.009,41752.0,41748.0,0.376447]
[1641909961920,0.009,41752.0,41748.0,0.476447]
[1641909962120,0.009,41752.0,41749.0,0.38456081]
[1641909962319,0.009,41752.0,41751.0,0.78975573]
[1641909962521,0.28132909,41761.0,41751.0,1.62261651]
[1641909962720,0.28132909,41761.0,41755.0,0.29678457]
[1641909963219,0.71354704,41761.0,41755.0,0.29678457]
[1641909963423,0.75054704,41761.0,41755.0,0.30178457]
[1641909964362,0.75054704,41761.0,41756.0,0.00055622]
[1641909964562,0.71354704,41761.0,41756.0,0.00055622]
[1641909965366,0.73054704,41761.0,41756.0,0.00055622]
[1641909965563,0.73054704,41761.0,41756.0,0.00111185]
[1641909966164,0.68921795,41761.0,41756.0,0.34962047]
[1641909966365,0.68921795,41761.0,41755.0,0.28289642]
[1641909966565,0.67221795,41761.0,41755.0,0.28289642]
[1641909966963,0.67221795,41761.0,41752.0,0.39331642]
[1641909967166,0.67221795,41761.0,41751.0,0.44772298]
[1641909967364,0.68721795,41761.0,41755.0,0.006]
[1641909967565,0.74710295,41761.0,41755.0,0.006]
[1641909968019,0.25261634,41758.0,41755.0,0.006]
[1641909969122,0.25261634,41758.0,41751.0,0.00120749]
[1641909969322,0.26361634,41758.0,41755.0,0.006]
[1641909970522,0.011,41758.0,41754.0,0.00065613]
[1641909970722,0.00085739,41759.0,41754.0,0.00065613]
[1641909971322,0.01285739,41759.0,41754.0,0.00965613]
[1641909971563,0.30068779,41755.0,41754.0,0.01031226]
[1641909971763,0.30068779,41755.0,41754.0,0.00965613]
[1641909972765,0.01285739,41759.0,41752.0,0.00065617]
[1641909972766,0.00085737,41759.0,41752.0,0.00065617]
[1641909973365,0.00785737,41759.0,41752.0,0.01265617]
[1641909973967,0.00854567,41759.0,41753.0,0.00052726]
[1641909974168,0.00854567,41759.0,41754.0,0.2709098]
[1641909974169,0.0076883,41759.0,41754.0,0.2709098]
[1641909974766,0.0006883,41759.0,41754.0,0.2709098]
[1641909975169,0.00137661,41759.0,41754.0,0.00052725]
[1641909975422,0.05168831,41759.0,41754.0,0.00852725]
[1641909975620,0.32854516,41758.0,41754.0,0.00852725]
[1641909976223,0.059893,41756.0,41754.0,0.00852725]
[1641909976428,0.71308179,41755.0,41754.0,0.00852725]
[1641909976623,0.71308179,41755.0,41754.0,0.00052725]
[1641909977323,0.71308179,41755.0,41754.0,0.00352725]
[1641909977324,0.72408179,41755.0,41754.0,0.00352725]
[1641909977524,0.97040474,41755.0,41754.0,0.00352725]
[1641909977724,0.97040474,41755.0,41754.0,0.003]
[1641909978723,0.62137095,41755.0,41752.0,0.00055254]
[1641909978928,0.37977667,41758.0,41752.0,0.00055254]
[1641909979365,0.003,41755.0,41752.0,0.02455254]
[1641909980068,0.003,41755.0,41753.0,0.00055253]
[1641909980466,0.003,41755.0,41754.0,0.375048]
[1641909980667,0.00072158,41759.0,41758.0,0.26450139]
[1641909980869,0.00072158,41759.0,41754.0,0.38834566]
[1641909981266,0.00071504,41759.0,41754.0,0.38834566]
[1641909981469,0.02771504,41759.0,41754.0,0.39634566]
[1641909981865,0.02771504,41759.0,41755.0,0.26604599]
[1641909982468,0.02771504,41759.0,41754.0,0.39689322]
[1641909982469,0.02771506,41759.0,41754.0,0.39689322]
[1641909982668,0.02771506,41759.0,41754.0,0.00054756]
[1641909982669,0.00071506,41759.0,41754.0,0.00054756]
[1641909983314,0.04471506,41759.0,41754.0,0.00854756]
[1641909983511,0.04471506,41759.0,41755.0,0.28730569]
[1641909983712,0.04471506,41759.0,41754.0,0.00854756]
[1641909984313,0.32795195,41758.0,41754.0,0.00854756]
[1641909984713,0.32795195,41758.0,41754.0,0.00054756]
[1641909984915,0.32795195,41758.0,41754.0,0.00054909]
[1641909985614,0.33795195,41758.0,41754.0,0.01054909]
[1641909986115,0.33795195,41758.0,41754.0,0.01054854]
[1641909986566,0.01,41758.0,41754.0,0.00054854]
[1641909986771,0.00071633,41759.0,41754.0,0.00054854]
[1641909987166,0.00071633,41759.0,41755.0,0.059877]
[1641909987365,0.04171633,41759.0,41755.0,0.059877]
[1641909987767,0.04171633,41759.0,41755.0,0.52623624]
[1641909987966,0.04171633,41759.0,41756.0,0.05987239]
[1641909988166,0.04171633,41759.0,41756.0,0.43492039]
[1641909988566,0.04171633,41759.0,41754.0,0.00754823]
[1641909988567,0.04171623,41759.0,41754.0,0.00754823]
[1641909988766,0.00071623,41759.0,41754.0,0.00054823]
[1641909989370,0.04371623,41759.0,41754.0,0.00754823]
[1641909989565,0.04371623,41759.0,41754.0,0.00809657]
[1641909989765,0.37246719,41759.0,41754.0,0.00754834]
[1641909990419,0.37246719,41759.0,41751.0,0.15335734]
[1641909990620,0.32946719,41759.0,41751.0,0.15335734]
[1641909990821,0.32946719,41759.0,41751.0,0.47460271]
[1641909991421,0.33246719,41759.0,41754.0,0.00054834]
[1641909991622,0.37702903,41758.0,41754.0,0.00054834]
[1641909991823,0.375048,41757.0,41754.0,0.00054834]
[1641909992424,0.375048,41757.0,41751.0,0.013]
[1641909992620,0.375048,41757.0,41746.0,0.24184772]
[1641909992821,0.059891,41757.0,41746.0,0.24184772]
[1641909993422,0.062891,41757.0,41746.0,0.26384772]
[1641909994475,0.003,41757.0,41746.0,0.26384772]
[1641909994676,0.37743319,41758.0,41746.0,0.24184772]
[1641909994973,0.37743319,41758.0,41746.0,0.29184772]
[1641909995177,0.37743319,41758.0,41749.0,0.05988247]
[1641909995372,0.38143319,41758.0,41746.0,0.26584772]
[1641909995573,0.38143319,41758.0,41746.0,0.31584772]
[1641909995773,0.38180684,41758.0,41750.0,0.00071809]
[1641909996373,0.24016852,41752.0,41750.0,0.00071809]
[1641909996973,0.24016852,41752.0,41744.0,0.92238068]
[1641909997178,0.24016852,41752.0,41744.0,1.02238068]
[1641909997373,0.24616852,41752.0,41750.0,0.016]
[1641909998213,0.006,41752.0,41750.0,0.016]
[1641909998414,0.006,41752.0,41751.0,0.33428969]
[1641909998813,0.39713026,41758.0,41751.0,0.39417669]
[1641909999214,0.6663793,41758.0,41751.0,0.39417669]
[1641909999414,0.67737931,41758.0,41751.0,0.39517669]
[1641909999617,0.67737931,41758.0,41751.0,0.33528969]
[1641909999818,0.40813027,41758.0,41751.0,0.33528969]
[1641910000216,0.01177095,41758.0,41753.0,0.059883]
[1641910000617,0.01168949,41758.0,41753.0,0.059883]
[1641910001018,0.00068949,41758.0,41753.0,0.059883]
[1641910001421,0.01168949,41758.0,41755.0,0.37150293]
[1641910001669,0.01169026,41758.0,41755.0,0.37150293]
[1641910002477,0.01169026,41758.0,41755.0,0.65379494]
[1641910002770,0.00069026,41758.0,41755.0,0.65379494]
[1641910002969,0.00069025,41759.0,41756.0,0.059876]
[1641910003373,0.06469025,41759.0,41756.0,0.059876]
[1641910003571,0.06469025,41759.0,41757.0,0.25181748]
[1641910004173,0.064,41759.0,41757.0,0.25181748]
[1641910004774,0.00071609,41760.0,41758.0,0.375048]
[1641910005079,0.00071609,41760.0,41758.0,0.534917]
[1641910005319,0.00072505,41760.0,41758.0,0.9012331]
[1641910005514,0.04072505,41760.0,41759.0,1.11286893]
[1641910005814,0.28072505,41760.0,41759.0,2.9096024]
[1641910006013,0.28072505,41760.0,41759.0,2.2096024]
[1641910006613,0.28,41760.0,41759.0,2.2096024]
[1641910006813,0.24,41760.0,41759.0,0.475048]
[1641910007414,0.242,41760.0,41759.0,0.486048]
[1641910007621,0.242,41760.0,41759.0,0.436048]
[1641910008716,0.24,41760.0,41759.0,0.525048]
[1641910008919,0.24,41760.0,41759.0,0.93717299]
[1641910009568,0.24,41760.0,41759.0,0.94517299]
[1641910010770,0.24,41760.0,41759.0,1.54682355]
[1641910011170,0.24,41760.0,41759.0,1.18469856]
[1641910011370,0.24,41760.0,41759.0,1.52925691]
[1641910011670,0.24,41760.0,41759.0,0.92860635]
[1641910012475,0.24,41760.0,41759.0,1.53825691]
[1641910012679,0.24,41760.0,41759.0,1.52925691]
[1641910012914,0.24,41760.0,41759.0,0.91960635]
[1641910013513,0.24,41760.0,41759.0,0.92860635]
[1641910013914,0.24,41760.0,41759.0,1.53825691]
[1641910014715,0.24,41760.0,41759.0,1.52925691]
[1641910015514,0.24,41760.0,41759.0,1.54825691]
[1641910015916,0.00071667,41762.0,41760.0,0.059861]
[1641910016115,0.00071632,41762.0,41761.0,0.7358029]
[1641910016317,0.00071632,41762.0,41761.0,0.7858029]
[1641910016562,0.00071632,41762.0,41761.0,0.9358029]
[1641910017364,0.00071631,41764.0,41762.0,0.05986108]
[1641910017563,0.00071631,41764.0,41763.0,0.61505987]
[1641910017764,0.00071631,41764.0,41763.0,0.71505987]
[1641910018464,0.00721167,41769.0,41763.0,0.71505987]
[1641910018465,0.00071641,41766.0,41763.0,0.71505987]
[1641910018668,0.00071641,41766.0,41763.0,0.34001187]
[1641910019166,0.00071641,41766.0,41763.0,0.39988187]
[1641910019564,0.00071641,41766.0,41763.0,0.41088187]
[1641910019765,0.00071649,41767.0,41764.0,0.375048]
[1641910019966,0.00071649,41767.0,41766.0,0.32367556]
[1641910020166,0.00071649,41767.0,41763.0,0.41088187]
[1641910020421,0.00071649,41767.0,41764.0,0.375048]
[1641910020823,0.00071649,41767.0,41765.0,0.34925143]
[1641910021023,0.00071648,41767.0,41766.0,1.57401074]
[1641910021224,0.0028655,41773.0,41767.0,0.65]
[1641910021420,0.0028655,41773.0,41769.0,0.4549097]
[1641910021621,0.0028655,41773.0,41772.0,0.03615282]
[1641910021820,0.0028655,41773.0,41772.0,1.14163042]
[1641910022021,0.0028655,41773.0,41772.0,1.34163042]
[1641910022221,0.5,41778.0,41772.0,1.38933042]
[1641910022421,0.5,41778.0,41777.0,0.00121807]
[1641910022620,0.5,41778.0,41777.0,0.47287607]
[1641910022821,0.5,41778.0,41777.0,0.72917593]
[1641910023127,0.5,41778.0,41777.0,0.87917593]
[1641910023525,0.5,41778.0,41777.0,0.88417593]
[1641910023924,0.5,41778.0,41777.0,0.93417593]
[1641910024767,0.5,41778.0,41777.0,0.77917593]
[1641910025465,0.5,41778.0,41777.0,0.78417593]
[1641910026363,0.50022661,41778.0,41777.0,0.78417593]
[1641910026768,0.50022661,41778.0,41777.0,0.72917593]
[1641910026966,0.50022661,41778.0,41777.0,0.77795786]
[1641910027265,0.74022661,41778.0,41777.0,0.521658]
[1641910027465,0.74022661,41778.0,41777.0,0.476658]
[1641910028721,0.74022661,41778.0,41777.0,0.521658]
[1641910028925,0.74022661,41778.0,41777.0,0.471658]
[1641910029521,0.74022661,41778.0,41777.0,0.476658]
[1641910030722,0.74022661,41778.0,41777.0,0.471658]
[1641910031124,0.74022661,41778.0,41777.0,0.521658]
[1641910031425,0.74022661,41778.0,41777.0,0.52291692]
[1641910031670,0.74022661,41778.0,41777.0,0.53491692]
[1641910032468,0.74022661,41778.0,41777.0,0.89783049]
[1641910032670,0.74022661,41778.0,41777.0,0.99783049]
[1641910032870,0.74022661,41778.0,41777.0,0.98583049]
[1641910033575,0.74022661,41778.0,41777.0,0.68491692]
[1641910033970,0.74022661,41778.0,41777.0,0.48491692]
[1641910034170,0.74022661,41778.0,41777.0,0.483658]
[1641910034568,0.74022661,41778.0,41777.0,0.82613109]
[1641910034770,0.74022661,41778.0,41777.0,0.86413109]
[1641910034970,0.74022661,41778.0,41777.0,0.96413109]
[1641910035170,0.74022661,41778.0,41777.0,1.01413109]
[1641910035426,0.74022661,41778.0,41777.0,0.91413109]
[1641910035626,0.73022661,41778.0,41777.0,1.02613109]
[1641910037429,0.73022661,41778.0,41777.0,1.01413109]
[1641910037628,0.73022661,41778.0,41777.0,1.02613109]
[1641910038732,0.73022661,41778.0,41777.0,1.01413109]
[1641910039570,0.73022661,41778.0,41777.0,1.02613109]
[1641910040770,0.73022661,41778.0,41777.0,1.36401396]
[1641910040970,0.73022661,41778.0,41777.0,1.34809396]
[1641910041169,0.73022661,41778.0,41777.0,1.39809396]
[1641910041571,0.73022661,41778.0,41777.0,1.45779396]
[1641910041973,0.73022661,41778.0,41777.0,1.42371396]
[1641910042825,0.73022661,41778.0,41777.0,1.41171396]
[1641910043520,0.73022661,41778.0,41777.0,1.42871396]
[1641910043722,0.703147,41778.0,41777.0,1.42871396]
[1641910044824,0.703147,41778.0,41777.0,1.41171396]
[1641910045626,0.703147,41778.0,41777.0,1.42571396]
[1641910046430,0.703147,41778.0,41777.0,1.42871396]
[1641910046872,0.703147,41778.0,41777.0,1.36471396]
[1641910047072,0.703147,41778.0,41777.0,1.06605154]
[1641910047472,0.703147,41778.0,41777.0,1.43475996]
[1641910047673,0.703147,41778.0,41777.0,1.08005154]
[1641910047975,0.703147,41778.0,41777.0,0.88005154]
[1641910048775,0.703147,41778.0,41777.0,0.86605154]
[1641910048980,0.703147,41778.0,41777.0,0.91605154]
[1641910049176,0.703147,41778.0,41777.0,1.47220382]
[1641910049575,0.703147,41778.0,41777.0,1.48720382]
[1641910050425,0.224539,41778.0,41777.0,1.48420382]
[1641910050827,0.224539,41778.0,41777.0,1.46920382]
[1641910051531,0.2248671,41778.0,41777.0,1.48420382]
[1641910051726,0.00160157,41779.0,41778.0,0.85]
[1641910051727,0.00130103,41779.0,41778.0,0.85]
[1641910051926,0.00130103,41779.0,41778.0,1.6856661]
[1641910052125,0.00130103,41779.0,41778.0,0.9356661]
[1641910052827,0.00130103,41779.0,41778.0,0.422748]
[1641910053026,0.0042,41781.0,41780.0,1.0020541]
[1641910053250,0.0042,41781.0,41780.0,1.3771021]
[1641910053527,0.0042,41781.0,41780.0,1.0130541]
[1641910053528,0.35491585,41781.0,41780.0,1.0130541]
[1641910053926,0.00491585,41781.0,41780.0,1.0130541]
[1641910054570,0.0042,41781.0,41780.0,1.0130541]
[1641910054769,0.0042,41781.0,41780.0,1.0020541]
[1641910055672,0.0042,41781.0,41780.0,1.3851021]
[1641910056272,0.00534845,41781.0,41780.0,1.3851021]
[1641910056872,0.00534845,41781.0,41780.0,1.3771021]
[1641910057670,0.00534845,41781.0,41780.0,1.3861021]
[1641910057924,0.24534845,41781.0,41780.0,1.3861021]
[1641910058925,0.24534845,41781.0,41780.0,1.3771021]
[1641910059527,0.24534845,41781.0,41780.0,1.3861021]
[1641910060127,0.24534845,41781.0,41780.0,1.0110541]
[1641910060327,0.24534845,41781.0,41780.0,1.3861021]
[1641910060828,0.24534845,41781.0,41780.0,1.3771021]
[1641910061672,0.24534845,41781.0,41780.0,1.3861021]
[1641910062071,0.24534845,41781.0,41780.0,1.0110541]
[1641910063272,0.24534845,41781.0,41780.0,1.0020541]
[1641910063678,0.24534845,41781.0,41780.0,1.0110541]
[1641910064875,0.24534845,41781.0,41780.0,1.0020541]
[1641910065837,0.24534845,41781.0,41780.0,1.0110541]
[1641910066237,0.24534845,41781.0,41780.0,0.009]
[1641910066436,0.2450703,41781.0,41780.0,0.009]
[1641910066836,0.2450703,41781.0,41776.0,0.05]
[1641910067240,0.37018402,41780.0,41771.0,0.1305247]
[1641910067439,0.37018402,41780.0,41767.0,0.84905556]
[1641910067440,0.00129788,41779.0,41767.0,0.72935556]
[1641910067638,0.0477,41778.0,41776.0,0.008]
[1641910067837,1.425048,41777.0,41776.0,0.008]
[1641910068038,1.472748,41777.0,41776.0,0.008]
[1641910068939,0.422748,41777.0,41769.0,0.2645045]
[1641910069176,0.0477,41777.0,41769.0,0.2645045]
[1641910069378,0.0477,41777.0,41772.0,0.3041981]
[1641910069779,0.5386703,41781.0,41774.0,0.44210251]
[1641910069981,0.2450703,41781.0,41774.0,0.54336392]
[1641910070279,0.2450703,41781.0,41775.0,0.30055383]
[1641910070480,0.2450703,41781.0,41779.0,0.81630658]
[1641910070682,0.00171319,41782.0,41780.0,0.375048]
[1641910070883,0.00171628,41782.0,41780.0,0.375048]
[1641910071079,0.00171628,41782.0,41780.0,0.475048]
[1641910071479,0.00027858,41781.0,41780.0,0.475048]
[1641910071679,0.00027858,41781.0,41780.0,0.380048]
[1641910072933,0.00027858,41781.0,41780.0,0.375048]
[1641910073731,0.00027858,41781.0,41780.0,0.383048]
[1641910075035,0.00027858,41781.0,41780.0,0.375048]
[1641910075633,0.00027858,41781.0,41780.0,0.383048]
[1641910076432,0.00061037,41781.0,41780.0,0.383048]
[1641910076677,0.00061037,41781.0,41780.0,0.433048]
[1641910076977,0.00061037,41781.0,41780.0,0.425048]
[1641910077677,0.00061037,41781.0,41780.0,0.433048]
[1641910078478,0.00061037,41781.0,41780.0,1.37865455]
[1641910078679,0.001,41789.0,41781.0,1.362178]
[1641910078882,0.001,41789.0,41782.0,1.3477]
[1641910078883,0.00071546,41783.0,41782.0,1.3477]
[1641910079080,0.00496118,41793.0,41783.0,1.375048]
[1641910079280,0.00496118,41793.0,41791.0,0.00125705]
[1641910079480,0.00496118,41793.0,41791.0,0.52114505]
[1641910079680,0.00496118,41793.0,41791.0,0.62114505]
[1641910080081,0.001,41794.0,41791.0,0.99051313]
[1641910080330,0.001,41794.0,41793.0,0.03006754]
[1641910080527,0.001,41794.0,41793.0,0.45281554]
[1641910080930,0.001,41794.0,41793.0,0.96362732]
[1641910081628,0.001,41794.0,41793.0,0.97562732]
[1641910082535,0.001,41794.0,41793.0,0.94680732]
[1641910082929,0.001,41794.0,41793.0,0.93480732]
[1641910083131,0.001,41794.0,41793.0,1.30464858]
[1641910083532,0.001,41794.0,41793.0,1.08799295]
[1641910083730,0.001,41794.0,41793.0,0.94680732]
[1641910084387,0.001,41794.0,41793.0,1.12023961]
[1641910085286,0.001,41794.0,41793.0,0.94680732]
[1641910085488,0.001,41794.0,41793.0,0.93480732]
[1641910085787,0.001,41794.0,41793.0,0.94780732]